bitfinex-derivatives/quotes_BNBF0:USTF0_20250130
["timestamp","ask_amount","ask_price","bid_price","bid_amount"]
[1738247320685,0.27079409,679.2,678.29,0.28719239]
[1738247320885,1.0985459,679.09,678.29,0.28719239]
[1738247323486,1.0985459,679.08,678.29,0.28719239]
[1738247323680,1.0985459,679.08,677.76,1.10000522]
[1738247323886,1.0985459,679.08,677.77,0.25696235]
[1738247324187,1.0985459,679.08,677.77,0.5520477]
[1738247324488,1.0985459,679.08,677.78,0.25696235]
[1738247324688,1.0985459,679.08,677.79,0.29507664]
[1738247324889,1.0985459,679.08,677.8,0.25696235]
[1738247325187,1.0985459,679.08,677.81,0.29506793]
[1738247325390,1.0985459,679.08,677.82,0.25696235]
[1738247325586,1.0985459,679.08,677.83,0.29505923]
[1738247325782,1.0985459,679.08,677.84,0.25696235]
[1738247325988,1.0985459,679.08,677.85,0.29505052]
[1738247326289,1.0985459,679.08,677.86,0.25696235]
[1738247326489,1.0985459,679.08,677.87,0.29504182]
[1738247326687,0.27080855,679.07,677.88,0.25696235]
[1738247326884,1.0985459,679.08,677.89,0.29503311]
[1738247327090,0.27081444,679.07,677.9,0.25696235]
[1738247327289,0.27081444,679.07,677.91,0.29502441]
[1738247327490,0.27081444,679.07,677.92,0.25696235]
[1738247327690,0.27081444,679.07,677.93,0.2950157]
[1738247327990,0.27081444,679.07,677.94,0.25696235]
[1738247328191,0.27081444,679.07,677.94,0.5519737]
[1738247328391,0.27081444,679.07,677.95,0.25696235]
[1738247329287,0.27081489,679.06,677.96,0.25696751]
[1738247329486,0.27081489,679.07,677.95,0.25696751]
[1738247329689,0.27081489,679.06,677.96,0.25696751]
[1738247329890,0.27081489,679.07,677.95,0.25696751]
[1738247332793,0.27081489,679.06,677.95,0.25696751]
[1738247333093,0.27081489,679.05,677.95,0.25696751]
[1738247333289,0.27081489,679.09,677.95,0.25696751]
[1738247333495,0.27081489,679.08,677.95,0.25696751]
[1738247333790,0.27081489,679.07,677.95,0.25696751]
[1738247333991,1.0985459,679.1,677.95,0.25696751]
[1738247335791,1.0985459,679.06,677.96,0.29500265]
[1738247335994,1.0985459,679.06,677.97,0.25696751]
[1738247337598,1.0985459,679.06,677.98,0.29499395]
[1738247337798,1.0985459,679.06,677.99,0.25692221]
[1738247338398,1.0985459,679.06,678.0,0.29498525]
[1738247338698,1.0985459,679.06,678.01,0.25692221]
[1738247339200,1.0985459,679.23,678.02,0.29497654]
[1738247339498,0.27076689,679.22,678.03,0.25692221]
[1738247339699,1.0985459,679.23,678.04,0.29496784]
[1738247339893,1.0985459,679.23,678.05,0.25692221]
[1738247340102,1.0985459,679.23,678.06,0.29495914]
[1738247340299,1.0985459,679.23,678.07,0.25692221]
[1738247341400,1.0985459,679.23,678.08,0.29495044]
[1738247341594,1.0985459,679.23,678.09,0.25692221]
[1738247342700,1.0985459,679.32,678.09,0.25692221]
[1738247342892,0.27075027,679.31,678.09,0.25692221]
[1738247345101,1.0985459,679.27,678.09,0.25692221]
[1738247345303,0.27075027,679.26,678.09,0.25692221]
[1738247347404,0.2707593,679.25,678.1,0.25691233]
[1738247347600,1.0985459,679.19,678.11,0.25691233]
[1738247347899,1.0985459,679.19,678.12,0.25691233]
[1738247348099,1.0985459,679.19,678.08,0.29495044]
[1738247348505,1.0985459,679.19,678.09,0.2569056]
[1738247350308,1.0985459,679.28,678.09,0.2569056]
[1738247352409,1.0985459,679.28,678.1,0.25685302]
[1738247352608,1.0985459,679.28,678.09,0.25685302]
[1738247352810,1.0985459,679.28,678.1,0.25685302]
[1738247353004,1.0985459,679.3,678.11,0.25685302]
[1738247353210,1.0985459,679.3,678.12,0.25685302]
[1738247353409,1.0985459,679.3,678.09,0.25685302]
[1738247353708,1.0985459,679.3,678.1,0.25685302]
[1738247353909,1.0985459,679.3,678.09,0.25685302]
[1738247355711,1.0985459,679.33,678.09,0.25685302]
[1738247356010,1.0985459,679.33,678.1,0.29494174]
[1738247356213,1.0985459,679.33,678.11,0.25685302]
[1738247356511,1.0985459,679.33,678.12,0.29493305]
[1738247356711,1.0985459,679.33,678.13,0.25685302]
[1738247357614,1.0985459,679.33,678.12,0.29493305]
[1738247357814,1.0985459,679.33,678.13,0.25682554]
[1738247358214,1.0985459,679.65,678.13,0.25682554]
[1738247358215,1.0985459,679.4,678.13,0.25682554]
[1738247359114,1.0985459,679.4,678.14,0.29492435]
[1738247359616,1.0985459,679.4,678.15,0.25683693]
[1738247359815,1.0985459,679.4,678.14,0.29492435]
[1738247360008,1.0985459,679.4,678.15,0.25683749]
[1738247361514,1.0985459,679.44,678.15,0.25683749]
[1738247361714,1.0985459,679.44,678.14,0.29492435]
[1738247361915,0.27072556,679.43,678.14,0.29492435]
[1738247362818,1.0985459,679.44,678.14,0.29492435]
[1738247363819,0.27072721,679.43,678.14,0.29492435]
[1738247364519,1.0985459,679.44,678.14,0.29492435]
[1738247364714,1.0985459,679.43,678.14,0.29492435]
[1738247366821,1.0985459,679.43,678.15,0.2568517]
[1738247367121,1.0985459,679.42,678.15,0.2568517]
[1738247367921,1.0985459,679.42,678.14,0.29492435]
[1738247368116,1.0985459,679.42,678.15,0.25683295]
[1738247369622,1.0985459,679.42,678.16,0.25683362]
[1738247369821,2.24286455,680.21,678.14,0.29492435]
[1738247369822,1.0985459,679.5,678.17,0.25683362]
[1738247370021,1.0985459,679.5,678.18,0.25683362]
[1738247370224,1.0985459,679.5,678.15,0.25683362]
[1738247370522,1.0985459,679.5,678.16,0.25683362]
[1738247370717,1.0985459,679.5,678.15,0.25683362]
[1738247370922,0.27068643,679.49,678.16,0.25683362]
[1738247371124,0.27068643,679.49,678.15,0.25683362]
[1738247371920,1.0985459,679.47,678.15,0.25683362]
[1738247372120,0.27068643,679.46,678.15,0.25683362]
[1738247372723,0.27068643,679.46,678.16,0.29491565]
[1738247372926,0.27068643,679.46,678.17,0.25683362]
[1738247373124,0.27068643,679.46,678.18,0.29490695]
[1738247373323,0.27068643,679.46,678.19,0.25683362]
[1738247373823,0.27068643,679.46,678.2,0.29489826]
[1738247374122,0.27068643,679.46,678.21,0.25683362]
[1738247374320,0.27068643,679.46,678.22,0.29488956]
[1738247374522,0.27068643,679.46,678.23,0.25683362]
[1738247374819,1.0985459,679.38,678.24,0.29488086]
[1738247375024,0.27068643,679.37,678.25,0.25683362]
[1738247375221,0.27068643,679.37,678.26,0.29487217]
[1738247375428,0.27068643,679.37,678.27,0.25683362]
[1738247375623,0.27068643,679.37,678.28,0.29486347]
[1738247375819,0.27068643,679.37,678.29,0.25683362]
[1738247376023,0.27068643,679.37,678.3,0.29485478]
[1738247376227,0.27068643,679.37,678.31,0.25683362]
[1738247377421,1.0985459,679.38,678.3,0.29485478]
[1738247377626,1.0985459,679.35,678.31,0.25683399]
[1738247377825,0.27068032,679.34,678.31,0.25683399]
[1738247378326,1.0985459,679.35,678.31,0.25683399]
[1738247379026,0.27068804,679.34,678.31,0.25683399]
[1738247379924,1.0985459,679.35,678.31,0.25683399]
[1738247380529,1.0985459,679.35,678.3,0.29485478]
[1738247380828,1.0985459,679.35,678.31,0.55168249]
[1738247381033,1.0985459,679.35,678.32,0.25683206]
[1738247381629,0.27068681,679.34,678.32,0.25683206]
[1738247382834,0.27068681,679.35,678.32,0.25683206]
[1738247383133,0.27068681,679.34,678.32,0.25683206]
[1738247383333,0.27068681,679.35,678.32,0.25683206]
[1738247383529,1.0985459,679.36,678.31,0.29485043]
[1738247383732,0.27068841,679.35,678.32,0.25684204]
[1738247384434,1.0985459,679.32,678.32,0.25684204]
[1738247384933,0.27069309,679.31,678.32,0.25684204]
[1738247385133,1.0985459,679.32,678.32,0.25684204]
[1738247385334,0.27069278,679.31,678.32,0.25684204]
[1738247385527,1.0985459,679.32,678.32,0.25684204]
[1738247385731,0.2706922,679.31,678.32,0.25684204]
[1738247385928,1.0985459,679.32,678.32,0.25684204]
[1738247386228,0.27069129,679.31,678.32,0.25684204]
[1738247386937,1.0985459,679.28,678.32,0.25684204]
[1738247387135,1.0985459,679.28,678.33,0.2568448]
[1738247387334,1.0985459,679.28,678.32,0.2568448]
[1738247387633,1.0985459,679.28,678.33,0.2568448]
[1738247387828,1.0985459,679.28,678.34,0.2568448]
[1738247388038,1.0985459,679.28,678.32,0.2568448]
[1738247388235,1.0985459,679.28,678.33,0.2568448]
[1738247388434,1.0985459,679.28,678.32,0.2568448]
[1738247388635,1.0985459,679.28,678.33,0.2568448]
[1738247388832,1.0985459,679.28,678.34,0.25684763]
[1738247389030,1.0985459,679.28,678.32,0.25684763]
[1738247389230,1.0985459,679.28,678.33,0.25684763]
[1738247389429,1.0985459,679.28,678.32,0.25684763]
[1738247391437,0.27070787,679.27,678.32,0.25684763]
[1738247391636,1.0985459,679.28,678.32,0.25684763]
[1738247392434,1.0985459,679.28,678.31,0.29485043]
[1738247392734,1.0985459,679.26,678.31,0.29485043]
[1738247393735,1.0985459,679.26,678.32,0.25686576]
[1738247394131,1.0985459,679.26,678.31,0.29485043]
[1738247394331,1.0985459,679.26,678.32,0.25686055]
[1738247394734,2.1065459,679.26,678.32,0.25686055]
[1738247394935,1.0985459,679.25,678.32,0.25686055]
[1738247396040,1.0985459,679.25,678.31,0.29485043]
[1738247397038,1.008,679.26,678.31,0.29485043]
[1738247405040,0.27075418,679.25,678.31,0.29485043]
[1738247405242,1.008,679.26,678.31,0.29485043]
[1738247405443,0.27075485,679.25,678.31,0.29485043]
[1738247406341,1.008,679.26,678.31,0.29485043]
[1738247407946,1.0985459,679.17,678.31,0.29485043]
[1738247410442,0.27080331,679.16,678.31,0.29485043]
[1738247411049,0.27080331,679.16,677.42,2.93232057]
[1738247411050,0.27080331,679.16,677.59,1.10000522]
[1738247411242,0.27080331,679.25,677.61,0.29515503]
[1738247411443,0.27080331,679.24,677.62,0.25696767]
[1738247411643,0.27080331,679.25,677.62,0.25696767]
[1738247411848,0.27080331,679.24,677.62,0.25696767]
[1738247412048,0.27080331,679.25,677.62,0.25696767]
[1738247412240,0.27080331,679.24,677.62,0.25696767]
[1738247412641,0.27080331,679.23,677.62,0.25696767]
[1738247412947,0.27080331,679.22,677.62,0.25696767]
[1738247413150,0.27080331,679.25,677.62,0.25696767]
[1738247413342,0.27080331,679.24,677.62,0.25696767]
[1738247413541,0.27080331,679.25,677.62,0.25696767]
[1738247413746,0.27080331,679.24,677.62,0.25696767]
[1738247413948,0.27082371,679.23,677.63,0.25697623]
[1738247414143,0.27082371,679.25,677.62,0.25697623]
[1738247414347,1.0985459,679.15,677.63,0.25697623]
[1738247414648,1.0985459,679.15,677.64,0.25697623]
[1738247414947,0.27083624,679.14,677.65,0.25697623]
[1738247415148,1.0985459,679.15,677.62,0.25697623]
[1738247415347,1.0985459,679.15,677.63,0.25697623]
[1738247415742,1.0985459,679.15,677.65,0.2951376]
[1738247415946,1.0985459,679.15,677.66,0.25697623]
[1738247416141,1.0985459,679.15,677.68,0.29512454]
[1738247416345,1.0985459,679.15,677.69,0.25697791]
[1738247416545,1.0985459,679.15,677.7,0.29511583]
[1738247416747,1.0985459,679.15,677.71,0.25697791]
[1738247417448,1.0985459,679.15,677.7,0.29511583]
[1738247417642,1.0985459,679.15,677.71,0.25697853]
[1738247418043,1.008,679.26,677.71,0.25697853]
[1738247418347,0.270825,679.25,677.71,0.25697853]
[1738247419048,0.270825,679.24,677.71,0.25697853]
[1738247419349,0.270825,679.29,677.71,0.25697853]
[1738247419550,0.270825,679.28,677.71,0.25697853]
[1738247419744,0.270825,679.29,677.72,0.29510712]
[1738247419948,0.56525439,679.28,677.73,0.25697853]
[1738247420251,0.270825,679.27,677.74,0.29509841]
[1738247420449,0.270825,679.27,677.75,0.25697853]
[1738247424447,0.29442939,679.28,677.76,0.25699505]
[1738247424752,0.27084266,679.27,677.77,0.25699505]
[1738247424953,0.27084266,679.27,677.75,0.25699505]
[1738247425154,0.27084266,679.27,677.76,0.25699505]
[1738247425349,0.27084266,679.27,677.75,0.25699505]
[1738247425555,0.27084266,679.27,677.74,0.29509841]
[1738247425556,0.27084266,679.27,677.76,0.25699505]
[1738247425757,0.27084266,679.27,677.75,0.25699505]
[1738247426055,0.29442939,679.28,677.74,0.29509841]
[1738247426256,0.27083229,679.27,677.75,0.25698474]
[1738247427258,1.0985459,679.23,677.75,0.25698474]
[1738247427453,0.27083229,679.22,677.75,0.25698474]
[1738247427651,1.0985459,679.23,677.74,0.29509841]
[1738247427856,0.27084,679.22,677.75,0.25699242]
[1738247429560,0.27084,679.22,677.74,0.29509841]
[1738247429859,0.2708314,679.21,677.75,0.25698382]
[1738247430060,0.2708314,679.22,677.76,0.2950897]
[1738247430261,0.765,679.23,677.77,0.25698382]
[1738247430658,0.765,679.23,677.78,0.29508099]
[1738247430959,0.765,679.23,677.79,0.25698382]
[1738247431364,0.765,679.23,677.78,0.29508099]
[1738247431556,0.765,679.23,677.79,0.25696421]
[1738247432061,0.765,679.23,677.8,0.29507229]
[1738247432262,0.765,679.23,677.81,0.25696421]
[1738247433660,0.27076882,679.22,677.81,0.25696421]
[1738247434567,0.27076882,679.22,677.82,0.25696421]
[1738247434867,0.27076882,679.22,677.81,0.25696421]
[1738247435068,0.27076882,679.22,677.82,0.25696421]
[1738247435260,0.27076882,679.22,677.81,0.25696421]
[1738247436061,0.27076882,679.22,677.83,0.29505923]
[1738247436366,0.27076882,679.22,677.84,0.25696421]
[1738247436567,0.765,679.23,677.83,0.29505923]
[1738247436768,0.27076691,679.22,677.84,0.25691325]
[1738247437263,0.765,679.23,677.84,0.25691325]
[1738247437867,0.765,679.23,677.86,0.29504617]
[1738247438064,0.765,679.23,677.87,0.25691325]
[1738247438369,0.765,679.23,677.86,0.29504617]
[1738247438570,0.765,679.23,677.87,0.25685214]
[1738247442271,0.765,679.23,677.89,0.29503311]
[1738247442471,0.765,679.23,677.9,0.25685214]
[1738247443172,0.765,679.23,677.92,0.29502006]
[1738247443367,0.765,679.23,677.93,0.25685214]
[1738247444373,0.765,679.23,677.94,0.25662688]
[1738247444568,0.765,679.23,677.93,0.25662688]
[1738247444767,0.765,679.23,677.94,0.25662688]
[1738247444972,0.765,679.23,677.93,0.25662688]
[1738247445167,0.765,679.23,677.92,0.29502006]
[1738247445168,0.765,679.23,677.94,0.25662688]
[1738247445366,0.765,679.23,677.93,0.25662688]
[1738247445571,0.765,679.23,677.94,0.25662688]
[1738247445774,0.765,679.23,677.93,0.25662688]
[1738247445968,0.765,679.23,677.94,0.25662688]
[1738247446367,0.765,679.23,677.95,0.25662688]
[1738247446571,0.765,679.23,677.93,0.25662688]
[1738247446772,0.765,679.23,677.94,0.25662688]
[1738247447076,0.765,679.23,677.93,0.25662688]
[1738247448478,0.27076489,679.22,677.93,0.25662688]
[1738247449175,0.27076489,679.53,677.93,0.25662688]
[1738247449372,0.27076489,679.52,677.93,0.25662688]
[1738247449879,1.0985459,679.54,677.93,0.25662688]
[1738247449880,0.27076489,679.51,677.93,0.25662688]
[1738247450178,1.0985459,679.54,677.93,0.25662688]
[1738247450179,0.27076489,679.5,677.93,0.25662688]
[1738247450479,0.27076489,679.49,677.93,0.25662688]
[1738247450679,1.0985459,679.34,677.93,0.25662688]
[1738247450877,0.27076489,679.33,677.93,0.25662688]
[1738247452481,0.27077541,679.32,677.94,0.25678991]
[1738247452776,0.27077541,679.33,677.93,0.25678991]
[1738247452982,0.27077541,679.32,677.94,0.25678991]
[1738247453379,0.27077541,679.31,677.95,0.25678991]
[1738247453577,0.27077541,679.33,677.93,0.25678991]
[1738247453881,0.27077541,679.32,677.94,0.25678991]
[1738247454081,0.27077541,679.31,677.95,0.25678991]
[1738247454282,0.27077541,679.33,677.93,0.25678991]
[1738247454580,0.27077541,679.32,677.94,0.25678991]
[1738247454784,0.27077541,679.33,677.95,0.295007]
[1738247454977,0.27077541,679.32,677.96,0.25678991]
[1738247455278,0.27077541,679.31,677.96,0.25678991]
[1738247455481,0.27077541,679.33,677.96,0.25678991]
[1738247455678,0.27077541,679.32,677.96,0.25678991]
[1738247455875,0.27073128,679.31,677.97,0.25666933]
[1738247456079,0.27073128,679.33,677.96,0.25666933]
[1738247456373,0.27073128,679.32,677.97,0.25666933]
[1738247456579,0.27073128,679.33,677.96,0.25666933]
[1738247456775,0.27073128,679.32,677.97,0.25666933]
[1738247457082,0.27073128,679.31,677.98,0.25666933]
[1738247457281,1.0985459,679.38,677.99,0.25666933]
[1738247457282,0.27073128,679.3,677.99,0.25666933]
[1738247457475,0.27073128,679.29,677.96,0.25666933]
[1738247457674,0.27073128,679.37,677.97,0.25666933]
[1738247457874,0.27073128,679.36,677.96,0.25666933]
[1738247458177,0.27073128,679.35,677.97,0.25666933]
[1738247458377,0.27073128,679.37,677.96,0.25666933]
[1738247458574,0.27073128,679.36,677.97,0.25666933]
[1738247458773,0.27073128,679.37,677.96,0.25666933]
[1738247458977,0.27073128,679.36,677.97,0.25666933]
[1738247459180,0.27073128,679.35,677.98,0.25666933]
[1738247459376,0.27073128,679.37,677.96,0.25666933]
[1738247459573,0.27073128,679.36,677.97,0.25666933]
[1738247459774,0.27073128,679.37,677.96,0.25666933]
[1738247459978,1.0985459,679.34,677.97,0.25666933]
[1738247460179,0.27073128,679.33,677.98,0.25666933]
[1738247460480,0.27073128,679.33,677.99,0.25666933]
[1738247460681,0.27073128,679.33,677.96,0.25666933]
[1738247460881,1.0985459,679.34,677.97,0.25666933]
[1738247461282,1.0985459,679.34,677.98,0.25666933]
[1738247461478,1.0985459,679.34,677.96,0.25666933]
[1738247463185,0.27071111,679.33,677.96,0.25666933]
[1738247463383,0.27070791,679.44,677.96,0.25666933]
[1738247463584,1.0985459,679.45,677.96,0.25666933]
[1738247463885,0.27070941,679.44,677.96,0.25666933]
[1738247464085,1.0985459,679.45,677.96,0.25666933]
[1738247465287,0.27069535,679.44,677.96,0.25666933]
[1738247466585,0.27069535,679.52,677.98,0.29499395]
[1738247466782,0.27069535,679.51,677.99,0.25666933]
[1738247466984,0.27069535,679.5,678.0,0.29498525]
[1738247467289,0.27069535,679.49,678.01,0.25666933]
[1738247467491,0.27069535,679.52,678.02,0.29497654]
[1738247467690,0.27069535,679.51,678.03,0.25666933]
[1738247467889,0.27069535,679.52,678.03,0.25666933]
[1738247468089,0.27069535,679.51,678.03,0.25666933]
[1738247468289,0.27069535,679.52,678.03,0.25666933]
[1738247468490,0.27069535,679.51,678.03,0.25666933]
[1738247468691,0.27069535,679.52,678.03,0.25666933]
[1738247469093,1.0985459,679.33,678.04,0.29496784]
[1738247469295,0.27069535,679.32,678.05,0.25666933]
[1738247469491,1.8365459,679.33,678.05,0.25666933]
[1738247470286,1.8365459,679.33,678.06,0.29495914]
[1738247470486,1.8365459,679.33,678.07,0.25666933]
[1738247472095,0.738,679.33,678.07,0.25666933]
[1738247472692,0.738,679.33,678.06,0.29495914]
[1738247472894,0.738,679.33,678.07,0.2565776]
[1738247476101,0.738,679.33,678.08,0.25661723]
[1738247476402,0.738,679.33,678.09,0.25661723]
[1738247476594,0.738,679.33,678.07,0.25661723]
[1738247476792,0.738,679.33,678.06,0.29495914]
[1738247476793,0.738,679.33,678.08,0.25661723]
[1738247477001,0.738,679.33,678.07,0.25661723]
[1738247477200,0.738,679.33,678.08,0.25661723]
[1738247477499,0.738,679.33,678.09,0.25661723]
[1738247477699,0.738,679.33,678.07,0.25661723]
[1738247480403,0.738,679.33,678.09,0.29494609]
[1738247480603,0.738,679.33,678.1,0.25661723]
[1738247481405,0.738,679.33,678.11,0.25659298]
[1738247481605,0.738,679.33,678.1,0.25659298]
[1738247481903,0.738,679.33,678.11,0.25659298]
[1738247482105,0.738,679.33,678.1,0.25659298]
[1738247482301,0.738,679.33,678.12,0.25659298]
[1738247482501,0.738,679.33,678.13,0.25659298]
[1738247482701,0.738,679.33,678.1,0.25659298]
[1738247483104,0.738,679.33,678.09,0.29494609]
[1738247483306,0.738,679.33,678.1,0.25661182]
[1738247484900,0.738,679.33,678.11,0.25657743]
[1738247485100,0.738,679.33,678.1,0.25657743]
[1738247485303,0.738,679.33,678.11,0.25657743]
[1738247485498,0.738,679.33,678.1,0.25657743]
[1738247488202,0.738,679.33,678.09,0.29494609]
[1738247488403,0.738,679.33,678.1,0.2566226]
[1738247490108,0.738,679.33,678.12,0.29493305]
[1738247490305,0.738,679.33,678.13,0.2566226]
[1738247491509,0.738,679.33,678.14,0.55164198]
[1738247491709,0.738,679.33,678.15,0.55163763]
[1738247491909,0.738,679.33,678.16,0.25671763]
[1738247492110,0.738,679.33,678.16,0.55163328]
[1738247492311,0.738,679.33,678.17,0.25671763]
[1738247492610,0.738,679.33,678.18,0.29490695]
[1738247492807,0.738,679.33,678.19,0.25671763]
[1738247493009,0.738,679.33,678.2,0.29489826]
[1738247493208,0.738,679.33,678.21,0.25671763]
[1738247493610,0.738,679.33,678.22,0.2566762]
[1738247494012,0.738,679.33,678.23,0.2566762]
[1738247494213,0.738,679.33,678.21,0.2566762]
[1738247494415,0.738,679.33,678.22,0.2566762]
[1738247494613,0.738,679.33,678.23,0.2566762]
[1738247494911,0.738,679.33,678.24,0.2566762]
[1738247495109,0.738,679.33,678.21,0.2566762]
[1738247495313,0.738,679.33,678.25,0.2566762]
[1738247495615,0.738,679.33,678.26,0.2566762]
[1738247495814,0.738,679.33,678.21,0.2566762]
[1738247497616,0.738,679.33,678.19,1.10000522]
[1738247497617,0.738,679.33,678.23,0.29488521]
[1738247497914,0.738,679.33,678.24,0.25659925]
[1738247498110,0.738,679.33,678.25,0.29487652]
[1738247498315,0.738,679.33,678.26,0.25659925]
[1738247498911,0.738,679.33,678.27,0.25672693]
[1738247499113,0.738,679.33,678.26,0.25672693]
[1738247499417,0.738,679.33,678.27,0.25672693]
[1738247499609,0.738,679.33,678.28,0.25672693]
[1738247499814,0.738,679.33,678.29,0.25672693]
[1738247500011,0.738,679.33,678.26,0.25672693]
[1738247500216,0.738,679.33,678.27,0.25672693]
[1738247500415,0.738,679.33,678.26,0.25672693]
[1738247500610,0.738,679.33,678.27,0.55159475]
[1738247500809,0.738,679.33,678.28,0.5515904]
[1738247501015,0.738,679.33,678.29,0.55158606]
[1738247501214,0.738,679.33,678.3,0.25672693]
[1738247502317,0.738,679.33,678.31,0.25675524]
[1738247502520,0.738,679.33,678.3,0.25675524]
[1738247502718,0.738,679.33,678.31,0.25675524]
[1738247503018,0.738,679.33,678.32,0.55160133]
[1738247503219,0.738,679.33,678.33,0.55159698]
[1738247503418,0.738,679.33,678.34,0.25675524]
[1738247504216,0.738,679.33,678.34,0.55159263]
[1738247504420,0.738,679.33,678.35,0.25675524]
[1738247509718,0.738,679.33,678.34,0.29483739]
[1738247509922,0.738,679.33,678.35,0.25665416]
[1738247510123,0.738,679.33,678.36,0.2948287]
[1738247510317,0.738,679.33,678.37,0.25665416]
[1738247510521,0.738,679.33,678.38,0.29482001]
[1738247515529,0.738,679.33,678.39,0.25664985]
[1738247521027,0.738,679.33,678.38,0.29482001]
[1738247521333,0.738,679.33,678.39,0.25658072]
[1738247524133,0.738,679.33,678.38,0.29482001]
[1738247528836,0.738,679.33,678.39,0.25648072]
[1738247530130,0.738,679.33,678.38,0.29482001]
[1738247531835,0.738,679.33,678.39,0.25623462]
[1738247533037,0.738,679.33,678.4,0.55107628]
[1738247533232,0.738,679.33,678.41,0.25626496]
[1738247533436,0.738,679.33,678.42,0.29480262]
[1738247533634,0.738,679.33,678.43,0.25626496]
[1738247534036,0.738,679.33,678.44,0.29479393]
[1738247534233,0.738,679.33,678.45,0.25626496]
[1738247534741,0.738,679.33,678.46,0.55105849]
[1738247534931,0.738,679.33,678.47,0.55105415]
[1738247535136,0.738,679.33,678.48,0.25627325]
[1738247535334,0.738,679.33,678.49,0.29477221]
[1738247535636,0.738,679.33,678.5,0.25627325]
[1738247535938,0.738,679.33,678.51,0.29476352]
[1738247536139,0.738,679.33,678.52,0.25627325]
[1738247538937,0.738,679.33,678.53,0.29475483]
[1738247539143,0.738,679.33,678.54,0.25627325]
[1738247539341,0.738,679.33,678.55,0.29474614]
[1738247539642,0.738,679.33,678.56,0.25627325]
[1738247539839,0.738,679.33,678.55,0.29474614]
[1738247540041,0.738,679.33,678.56,0.25624005]
[1738247540640,0.738,679.33,678.57,0.29473746]
[1738247540940,0.738,679.33,678.58,0.25624005]
[1738247542140,0.738,679.33,678.59,0.29472877]
[1738247542538,0.738,679.33,678.6,0.25620611]
[1738247542742,0.738,679.33,678.61,0.29472008]
[1738247544448,0.738,679.33,678.62,0.25620419]
[1738247545346,0.738,679.33,678.62,0.55091993]
[1738247545544,0.738,679.33,678.63,0.25620419]
[1738247547152,0.738,679.33,678.62,0.29471574]
[1738247553757,0.738,679.33,678.63,0.25609845]
[1738247556157,0.738,679.33,678.62,0.29471574]
[1738247563770,1.0985459,679.89,678.62,0.29471574]
[1738247563967,1.0985459,680.07,678.63,0.25530097]
[1738247564167,1.0985459,680.07,678.65,0.29470271]
[1738247564463,1.0985459,680.07,678.66,0.25530097]
[1738247564666,1.0985459,680.07,678.68,0.29468969]
[1738247564867,1.0985459,680.07,678.69,0.25530097]
[1738247565070,1.0985459,680.07,678.71,0.29467666]
[1738247565370,1.0985459,680.07,678.72,0.25530097]
[1738247565571,1.0985459,680.07,678.74,0.29466364]
[1738247565869,1.0985459,680.07,678.75,0.25526963]
[1738247566070,1.0985459,680.07,678.77,0.29465061]
[1738247566271,1.0985459,680.07,678.78,0.25526963]
[1738247567062,1.0985459,680.07,678.8,0.29463759]
[1738247567470,1.0985459,680.07,678.81,0.25526706]
[1738247567672,1.0985459,680.07,678.83,0.29462457]
[1738247567869,1.0985459,681.6,678.84,0.25526706]
[1738247568074,0.2934832,681.47,678.86,0.29461155]
[1738247568273,0.27028549,681.46,678.87,0.25526706]
[1738247568770,0.2935392,681.34,678.89,0.29459853]
[1738247568974,0.27028549,681.33,678.9,0.25526706]
[1738247569175,0.29359522,681.21,678.92,0.29458551]
[1738247569368,0.27028549,681.2,678.93,0.25526706]
[1738247569570,0.27028549,681.2,678.95,0.2945725]
[1738247569768,0.27028549,681.2,678.96,0.25526706]
[1738247569975,0.27030571,681.19,678.97,0.25531028]
[1738247570176,0.27030571,681.2,678.99,0.29455514]
[1738247570373,0.29364263,681.1,678.99,0.29455514]
[1738247570572,0.27030571,681.09,678.99,0.29455514]
[1738247570872,0.29365557,681.07,678.99,0.29455514]
[1738247571175,0.27030571,681.06,678.99,0.29455514]
[1738247571374,0.2936685,681.04,678.99,0.29455514]
[1738247571577,0.27030571,681.03,678.99,0.29455514]
[1738247571771,0.29368144,681.01,678.99,0.29455514]
[1738247571977,0.27030571,681.0,678.99,0.29455514]
[1738247572371,0.29372888,680.9,678.99,0.29455514]
[1738247572572,0.27030571,680.89,678.99,0.29455514]
[1738247575078,0.29372888,680.9,678.99,0.29455514]
[1738247575379,0.27042444,680.89,678.99,0.29455514]
[1738247575872,0.29374183,680.87,678.99,0.29455514]
[1738247576077,0.27042444,680.86,678.99,0.29455514]
[1738247577882,0.27042444,680.85,678.99,0.29455514]
[1738247578082,0.29375908,680.83,678.99,0.29455514]
[1738247578277,0.27042444,680.82,678.99,0.29455514]
[1738247578681,0.29377203,680.8,678.99,0.29455514]
[1738247578883,0.27042444,680.79,678.99,0.29455514]